bitfinex-derivatives/quotes_BTCF0:USTF0_20240825
["timestamp","ask_amount","ask_price","bid_price","bid_amount"]
[1724583240696,0.35494683,63879.0,63878.0,0.08847182]
[1724583240903,0.35494683,63879.0,63878.0,0.44927182]
[1724583242097,0.35494629,63879.0,63878.0,0.44927182]
[1724583243102,0.28641591,63879.0,63878.0,0.44927182]
[1724583245404,0.01659,63879.0,63878.0,0.44927182]
[1724583245610,0.01659,63879.0,63878.0,0.52725374]
[1724583245903,0.01659,63879.0,63878.0,0.56848585]
[1724583246302,0.01659,63879.0,63878.0,0.64657594]
[1724583247209,0.01659,63879.0,63878.0,0.52736191]
[1724583248506,0.01659,63879.0,63878.0,0.44927182]
[1724583248811,0.01659,63879.0,63878.0,0.52736191]
[1724583249306,0.01659,63879.0,63878.0,0.44927182]
[1724583258415,0.04680809,63879.0,63878.0,0.44927182]
[1724583258617,0.09520809,63879.0,63878.0,0.44927182]
[1724583260219,0.13351671,63879.0,63878.0,0.44927182]
[1724583260818,0.40334262,63879.0,63878.0,0.44927182]
[1724583261215,0.52854625,63879.0,63878.0,0.44927182]
[1724583261814,0.52854832,63879.0,63878.0,0.44927182]
[1724583262416,0.40334469,63879.0,63878.0,0.44927182]
[1724583264217,0.52854832,63879.0,63878.0,0.44927182]
[1724583265125,0.078237,63878.0,63877.0,0.06247473]
[1724583265510,0.41062773,63878.0,63876.0,0.06247473]
[1724583265711,0.14080182,63878.0,63876.0,0.07247473]
[1724583265918,0.26982591,63877.0,63876.0,0.07247473]
[1724583266323,0.34846391,63877.0,63876.0,0.01]
[1724583267122,0.34946391,63877.0,63876.0,0.07247473]
[1724583267323,0.34946391,63877.0,63876.0,0.01]
[1724583268120,0.35046391,63877.0,63876.0,0.01]
[1724583269029,0.41302873,63877.0,63876.0,0.01]
[1724583272421,0.41302873,63877.0,63876.0,0.05683795]
[1724583273122,0.35046391,63877.0,63876.0,0.01]
[1724583280431,0.35046391,63877.0,63876.0,0.088239]
[1724583285430,0.27222591,63877.0,63876.0,0.13507695]
[1724583285750,0.27222591,63877.0,63876.0,0.088239]
[1724583287943,0.27222591,63877.0,63876.0,0.15071373]
[1724583288135,0.27222591,63877.0,63876.0,0.088239]
[1724583288531,0.0024,63877.0,63876.0,0.088239]
[1724583288729,0.27222591,63877.0,63876.0,0.088239]
[1724583291149,0.27222591,63877.0,63876.0,0.449039]
[1724583294550,0.36607315,63877.0,63876.0,0.449039]
[1724583295149,0.36607315,63877.0,63876.0,0.088239]
[1724583298049,0.36607315,63877.0,63876.0,0.449039]
[1724583298753,0.36607315,63877.0,63876.0,0.088239]
[1724583299050,0.36607315,63877.0,63876.0,0.449039]
[1724583301252,0.27222591,63877.0,63876.0,0.449039]
[1724583306148,0.35043933,63877.0,63876.0,0.449039]
[1724583306752,0.08061342,63877.0,63876.0,0.449039]
[1724583306958,0.0024,63877.0,63876.0,0.49591892]
[1724583308945,0.0024,63877.0,63876.0,0.449039]
[1724583309149,0.06494579,63877.0,63876.0,0.449039]
[1724583310249,0.06494579,63877.0,63876.0,0.809839]
[1724583310661,0.06494579,63877.0,63876.0,0.85671709]
[1724583311050,0.06494579,63877.0,63876.0,0.49591709]
[1724583311254,0.06359,63879.0,63878.0,0.078237]
[1724583311466,0.06359,63879.0,63878.0,0.30744874]
[1724583311759,0.06359,63879.0,63878.0,0.66824874]
[1724583312353,0.06359,63879.0,63878.0,0.66864874]
[1724583312559,0.01519,63879.0,63878.0,1.06864874]
[1724583312854,0.1433,63885.0,63884.0,0.078229]
[1724583313059,0.1433,63885.0,63884.0,0.469029]
[1724583313558,0.1433,63885.0,63884.0,0.469429]
[1724583314755,0.1433,63885.0,63884.0,0.470429]
[1724583315858,0.1433,63885.0,63884.0,0.471429]
[1724583319160,0.21182434,63885.0,63884.0,0.471429]
[1724583319747,0.28295726,63885.0,63884.0,0.471429]
[1724583321155,0.21182282,63885.0,63884.0,0.471429]
[1724583323452,0.33690001,63885.0,63884.0,0.471429]
[1724583323763,0.33681215,63885.0,63884.0,0.471429]
[1724583324355,0.21182282,63885.0,63884.0,0.471429]
[1724583325659,0.48164873,63885.0,63884.0,0.471429]
[1724583326162,0.41312591,63885.0,63884.0,0.471429]
[1724583326463,0.41312591,63885.0,63884.0,0.53395319]
[1724583328366,0.41312591,63885.0,63884.0,0.17315319]
[1724583329563,0.41312591,63885.0,63884.0,0.17316665]
[1724583330267,0.41312591,63885.0,63884.0,0.1731678]
[1724583330461,0.41312591,63885.0,63884.0,0.110629]
[1724583335186,0.47562123,63885.0,63884.0,0.110629]
[1724583335964,0.41312591,63885.0,63884.0,0.110629]
[1724583336259,0.47562123,63885.0,63884.0,0.110629]
[1724583338569,0.15719532,63885.0,63884.0,0.110629]
[1724583338965,0.0947,63885.0,63884.0,0.110629]
[1724583340874,0.0947,63885.0,63884.0,0.471429]
[1724583341271,0.1632231,63885.0,63884.0,0.110629]
[1724583341477,0.1632231,63885.0,63884.0,0.471429]
[1724583341969,0.1632231,63885.0,63884.0,0.110629]
[1724583342171,0.1632231,63885.0,63884.0,0.471429]
[1724583344173,0.1632231,63885.0,63884.0,0.110629]
[1724583344567,0.1632231,63885.0,63884.0,0.471429]
[1724583346668,0.43304901,63885.0,63884.0,0.471429]
[1724583346969,0.43304906,63885.0,63884.0,0.471429]
[1724583347770,0.43304908,63885.0,63884.0,0.471429]
[1724583348173,0.43304908,63885.0,63884.0,0.110629]
[1724583348375,0.43304908,63885.0,63884.0,0.54958424]
[1724583348376,0.42710782,63885.0,63884.0,0.54958424]
[1724583348879,0.36452591,63885.0,63884.0,0.471429]
[1724583351475,0.44275391,63885.0,63884.0,0.471429]
[1724583355675,0.44275391,63885.0,63884.0,0.110629]
[1724583355875,0.44275391,63885.0,63884.0,0.471429]
[1724583356370,0.51127817,63885.0,63884.0,0.471429]
[1724583356776,0.51127817,63885.0,63884.0,0.110629]
[1724583357085,0.51127815,63885.0,63884.0,0.471429]
[1724583357688,0.51127815,63885.0,63884.0,0.110629]
[1724583358071,0.51127815,63885.0,63884.0,0.471429]
[1724583358676,0.51127815,63885.0,63884.0,0.110629]
[1724583358873,0.51127815,63885.0,63884.0,0.471429]
[1724583361680,0.38435015,63885.0,63884.0,0.471429]
[1724583361981,0.50954255,63885.0,63884.0,0.471429]
[1724583363274,0.31582591,63885.0,63884.0,0.471429]
[1724583365984,0.37842124,63885.0,63884.0,0.471429]
[1724583367885,0.37842124,63885.0,63884.0,0.110629]
[1724583368086,0.37842124,63885.0,63884.0,0.471429]
[1724583368281,0.31582591,63885.0,63884.0,0.54958424]
[1724583370093,0.37842124,63885.0,63884.0,0.471429]
[1724583373093,0.37842124,63885.0,63884.0,0.110629]
[1724583373597,0.31582591,63885.0,63884.0,0.471429]
[1724583375202,0.31582591,63885.0,63884.0,0.110629]
[1724583375396,0.31582591,63885.0,63884.0,0.471429]
[1724583375991,0.31582591,63885.0,63884.0,0.110629]
[1724583376191,0.31582591,63885.0,63884.0,0.471429]
[1724583378092,0.31582591,63885.0,63884.0,0.110629]
[1724583378405,0.31582591,63885.0,63884.0,0.471429]
[1724583379703,0.34604251,63885.0,63884.0,0.471429]
[1724583382604,0.31582591,63885.0,63884.0,0.471429]
[1724583383202,0.31582591,63885.0,63884.0,0.110629]
[1724583383402,0.31582591,63885.0,63884.0,0.471429]
[1724583385109,0.31582591,63885.0,63884.0,0.110629]
[1724583385312,0.31582591,63885.0,63884.0,0.471429]
[1724583391321,0.37843444,63885.0,63884.0,0.66879175]
[1724583393334,0.40971434,63885.0,63884.0,0.471429]
[1724583398537,0.31582591,63885.0,63884.0,0.51837826]
[1724583399128,0.31582591,63885.0,63884.0,0.37161976]
[1724583399435,0.40971434,63885.0,63884.0,0.3946705]
[1724583399826,0.40971434,63885.0,63884.0,0.4728995]
[1724583400024,0.40971434,63885.0,63884.0,0.365277]
[1724583401038,0.44903131,63885.0,63884.0,0.23808677]
[1724583401432,0.35514288,63885.0,63884.0,0.35729336]
[1724583401736,0.35514288,63885.0,63884.0,0.21053556]
[1724583401935,0.39841551,63885.0,63884.0,0.21053556]
[1724583402632,0.42170144,63885.0,63884.0,0.28877545]
[1724583403030,0.35909854,63885.0,63884.0,0.28877545]
[1724583403429,0.31582591,63885.0,63884.0,0.28877545]
[1724583404134,0.31582591,63885.0,63884.0,0.14201785]
[1724583404338,0.37842881,63885.0,63884.0,0.20201785]
[1724583404837,0.37842881,63885.0,63884.0,0.28024685]
[1724583406541,0.37842881,63885.0,63884.0,0.21646889]
[1724583406735,0.37842881,63885.0,63884.0,0.08927887]
[1724583406941,0.37842881,63885.0,63884.0,0.13497555]
[1724583407136,0.31582591,63885.0,63884.0,0.13497555]
[1724583407344,0.37842881,63885.0,63884.0,0.13497555]
[1724583407639,0.37842881,63885.0,63884.0,0.15943515]
[1724583408434,0.31582591,63885.0,63884.0,0.15943515]
[1724583408634,0.31582591,63885.0,63884.0,0.20637607]
[1724583409838,0.046,63885.0,63884.0,0.20637607]
[1724583410044,0.046,63885.0,63884.0,0.52023515]
[1724583410244,0.046,63885.0,63884.0,0.58279171]
[1724583410446,0.046,63885.0,63884.0,0.52023515]
[1724583411344,0.108561,63885.0,63884.0,0.52023515]
[1724583411640,0.109561,63885.0,63884.0,0.52123515]
[1724583412037,0.110561,63885.0,63884.0,0.52223515]
[1724583412236,0.110561,63885.0,63884.0,0.58476396]
[1724583412843,0.110561,63885.0,63884.0,0.56030436]
[1724583413139,0.110561,63885.0,63884.0,0.58476108]
[1724583413444,0.048,63885.0,63884.0,0.58476108]
[1724583413843,0.048,63885.0,63884.0,0.52223227]
[1724583414246,0.048,63885.0,63884.0,0.58474265]
[1724583415744,0.048,63885.0,63884.0,0.59983527]
[1724583415946,0.048,63885.0,63884.0,0.23903527]
[1724583416146,0.048,63885.0,63884.0,0.59983512]
[1724583416546,0.00886948,63885.0,63884.0,0.63119622]
[1724583416937,0.00886948,63885.0,63884.0,0.53732474]
[1724583417339,0.00886948,63885.0,63884.0,0.17652474]
[1724583417540,0.00886948,63885.0,63884.0,0.53732474]
[1724583419147,0.00886948,63885.0,63884.0,0.65651605]
[1724583419641,0.00886948,63885.0,63884.0,0.15206817]
[1724583419842,0.00886948,63885.0,63884.0,0.29571592]
[1724583420046,0.00886948,63885.0,63884.0,0.65651592]
[1724583421546,0.00886948,63885.0,63884.0,0.29571592]
[1724583421947,0.00886948,63885.0,63884.0,0.65651592]
[1724583423253,0.00023482,63889.0,63888.0,0.078225]
[1724583423451,0.0499,63892.0,63891.0,0.078221]
[1724583423645,0.0499,63892.0,63891.0,0.32186875]
[1724583424246,0.0499,63892.0,63891.0,0.32226875]
[1724583426158,0.0509,63892.0,63891.0,0.32326875]
[1724583426345,0.0509,63892.0,63891.0,0.29981224]
[1724583426541,0.0509,63892.0,63891.0,0.32426644]
[1724583428154,0.0509,63892.0,63891.0,0.68506644]
[1724583429454,0.0509,63892.0,63891.0,0.66061224]
[1724583429844,0.0509,63892.0,63891.0,0.6850662]
[1724583431465,0.00023482,63898.0,63897.0,0.078214]
[1724583431655,0.00023482,63898.0,63897.0,0.56346796]
[1724583431656,0.27006073,63898.0,63897.0,0.56346796]
[1724583432249,0.27006073,63898.0,63897.0,0.56386796]
[1724583432442,0.27006073,63898.0,63897.0,0.56386583]
[1724583433050,0.27006073,63898.0,63897.0,0.539414]
[1724583433357,0.27006073,63898.0,63897.0,0.56386586]
[1724583433547,0.33250071,63898.0,63897.0,0.56386586]
[1724583433849,0.33250071,63898.0,63897.0,0.56486586]
[1724583434043,0.33250071,63898.0,63897.0,0.56586586]
[1724583436457,0.33250071,63898.0,63897.0,0.541414]
[1724583438353,0.0626748,63898.0,63897.0,0.541414]
[1724583438557,0.00023482,63898.0,63897.0,0.61940451]
[1724583438757,0.00023482,63898.0,63897.0,0.73857308]
[1724583439161,0.00023482,63898.0,63897.0,0.66058257]
[1724583442170,0.00023482,63898.0,63897.0,0.66058079]
[1724583444956,0.00023482,63898.0,63897.0,0.68503233]
[1724583445665,0.00023482,63898.0,63897.0,0.68403233]
[1724583446563,0.27006073,63898.0,63897.0,0.68303233]
[1724583446870,0.29541448,63898.0,63897.0,0.56386554]
[1724583447161,0.02558857,63898.0,63897.0,0.56386554]
[1724583449265,0.119477,63898.0,63897.0,0.56386554]
[1724583451568,0.02558857,63898.0,63897.0,0.56386554]
[1724583451971,0.02558857,63898.0,63897.0,0.563865]
[1724583452271,0.09394407,63898.0,63897.0,0.563865]
[1724583452463,0.11929782,63898.0,63897.0,0.563865]
[1724583452663,0.02558857,63898.0,63897.0,0.203065]
[1724583452966,0.02558857,63898.0,63897.0,0.563865]
[1724583453775,0.02558857,63898.0,63897.0,0.68302795]
[1724583453776,0.00023482,63898.0,63897.0,0.68302795]
[1724583456172,0.00023482,63898.0,63897.0,0.72214907]
[1724583456772,0.00023482,63898.0,63897.0,0.86719049]
[1724583456974,0.00023482,63898.0,63897.0,0.86718947]
[1724583458466,0.00023482,63898.0,63897.0,0.72214854]
[1724583458875,0.00023482,63898.0,63897.0,0.80036254]
[1724583459273,0.00023482,63898.0,63897.0,0.94540376]
[1724583460069,0.00023482,63898.0,63897.0,0.88183164]
[1724583461479,0.04687326,63907.0,63906.0,0.078203]
[1724583461670,0.1434,63909.0,63908.0,0.0782]
[1724583461869,0.1434,63909.0,63908.0,0.37549962]
[1724583461870,0.19031284,63909.0,63908.0,0.37549962]
[1724583462077,0.46013875,63909.0,63908.0,0.37549962]
[1724583462278,0.46013875,63909.0,63908.0,0.25634297]
[1724583462465,0.41322591,63909.0,63908.0,0.37589891]
[1724583462671,0.46013875,63909.0,63908.0,0.25674297]
[1724583462880,0.47486607,63909.0,63908.0,0.37589929]
[1724583463178,0.47486607,63909.0,63908.0,0.37589917]
[1724583463376,0.42795323,63909.0,63908.0,0.37589815]
[1724583463678,0.47486607,63909.0,63908.0,0.37689906]
[1724583464073,0.47486607,63909.0,63908.0,0.37789906]
[1724583464273,0.42795323,63909.0,63908.0,0.37789906]
[1724583465174,0.42795323,63909.0,63908.0,0.25874297]
[1724583465979,0.42795323,63909.0,63908.0,0.1806]
[1724583465980,0.47486607,63909.0,63908.0,0.1806]
[1724583467278,0.47486607,63909.0,63908.0,0.20504902]
[1724583468281,0.47486607,63909.0,63908.0,0.28319199]
[1724583468782,0.5470509,63909.0,63908.0,0.20504902]
[1724583470273,0.45330438,63909.0,63908.0,0.20504902]
[1724583471783,0.4533043,63909.0,63908.0,0.20504902]
[1724583472379,0.4533043,63909.0,63908.0,0.1806]
[1724583472686,0.4533043,63909.0,63908.0,0.20504891]
[1724583473182,0.06828125,63916.0,63909.0,0.078198]
[1724583473384,0.09848421,63916.0,63909.0,0.188198]
[1724583473678,0.09848421,63916.0,63910.0,0.078197]
[1724583473679,0.03020296,63915.0,63910.0,0.078197]
[1724583473884,0.03020296,63914.0,63910.0,0.188197]
[1724583474079,0.03020296,63913.0,63911.0,0.078196]
[1724583474282,0.03020296,63912.0,63911.0,0.158196]
[1724583475281,0.03020296,63912.0,63911.0,0.159196]
[1724583475785,0.03020296,63912.0,63911.0,0.158196]
[1724583475982,0.03020296,63912.0,63911.0,0.159196]
[1724583476281,0.08297909,63916.0,63911.0,0.159196]
[1724583476282,0.01469784,63916.0,63913.0,0.078194]
[1724583476479,0.1433,63915.0,63913.0,0.138194]
[1724583476884,0.06252467,63914.0,63913.0,0.138194]
[1724583477483,0.06252467,63914.0,63913.0,0.139194]
[1724583477979,0.06252467,63914.0,63913.0,0.138194]
[1724583478179,0.06252467,63914.0,63913.0,0.139194]
[1724583478785,0.06252467,63914.0,63913.0,0.140194]
[1724583481377,0.06252467,63914.0,63913.0,0.140594]
[1724583482583,0.06252467,63914.0,63913.0,0.16504274]
[1724583482775,0.1433,63915.0,63913.0,0.12949148]
[1724583482973,0.6127,63915.0,63914.0,0.06250357]
[1724583483181,0.6127,63915.0,63914.0,0.08695231]
[1724583483385,1.451652,63915.0,63913.0,0.10504274]
[1724583483581,0.547593,63914.0,63913.0,0.02644874]
[1724583483778,0.547593,63914.0,63900.0,0.09377916]
[1724583483779,0.547593,63914.0,63904.0,0.04688984]
[1724583483976,0.093816,63909.0,63908.0,0.0782]
[1724583484180,0.3608,63909.0,63908.0,0.1326522]
[1724583484381,0.83024,63909.0,63908.0,0.1326522]
[1724583484683,0.45461106,63909.0,63908.0,0.1326522]
[1724583485278,0.3608,63909.0,63908.0,0.1326522]
[1724583485491,0.45461106,63909.0,63908.0,0.1336522]
[1724583485782,0.3608,63909.0,63908.0,0.1336522]
[1724583485982,0.45461106,63909.0,63908.0,0.1336522]
[1724583486191,0.3618,63909.0,63908.0,0.1346522]
[1724583486687,0.37700488,63909.0,63908.0,0.1346522]
[1724583487384,0.47081594,63909.0,63908.0,0.1346522]
[1724583487585,0.37700488,63909.0,63908.0,0.1346522]
[1724583487890,0.47081594,63909.0,63908.0,0.1346522]
[1724583488087,0.4961699,63909.0,63908.0,0.1346522]
[1724583488586,0.40235884,63909.0,63908.0,0.1346522]
[1724583490585,0.40235884,63909.0,63908.0,0.13465161]
[1724583491280,0.40235875,63909.0,63908.0,0.13465161]
[1724583491788,0.37700488,63909.0,63908.0,0.13465161]
[1724583494092,0.01620488,63909.0,63908.0,0.1815295]
[1724583494289,0.37700488,63909.0,63908.0,0.15707789]
[1724583496380,0.43951674,63909.0,63908.0,0.15707789]
[1724583498286,0.43951674,63909.0,63908.0,0.1102]
[1724583498683,0.37700488,63909.0,63908.0,0.1102]
[1724583498881,0.40235808,63909.0,63908.0,0.1102]
[1724583499484,0.04155808,63909.0,63908.0,0.1102]
[1724583499680,0.01620488,63909.0,63908.0,0.1102]
[1724583499990,0.09433485,63909.0,63908.0,0.1102]
[1724583500388,0.01620488,63909.0,63908.0,0.1102]
[1724583500592,0.0415577,63909.0,63908.0,0.1102]
[1724583501091,0.04155766,63909.0,63908.0,0.1102]
[1724583506098,0.04155784,63909.0,63908.0,0.1102]
[1724583506891,0.01620488,63909.0,63908.0,0.1102]
[1724583510697,0.07872294,63909.0,63908.0,0.1102]
[1724583512700,0.07872294,63909.0,63908.0,0.1346504]
[1724583515494,0.07872294,63909.0,63908.0,0.1102]
[1724583515797,0.07872294,63909.0,63908.0,0.13465005]
[1724583518113,0.07872294,63909.0,63908.0,0.1102]
[1724583518498,0.01620488,63909.0,63908.0,0.1102]
[1724583519703,0.07876207,63909.0,63908.0,0.1102]
[1724583520107,0.07876214,63909.0,63908.0,0.1102]
[1724583520998,0.01620488,63909.0,63908.0,0.1102]
[1724583522211,0.04155807,63909.0,63908.0,0.1102]
[1724583525212,0.04155807,63909.0,63908.0,0.13465092]
[1724583526010,0.04155804,63909.0,63908.0,0.13465092]
[1724583526805,0.04155804,63909.0,63908.0,0.1102]
[1724583528099,0.04155804,63909.0,63908.0,0.13465086]
[1724583528311,0.04155804,63909.0,63908.0,0.1102]
[1724583528604,0.04155804,63909.0,63908.0,0.13465086]
[1724583528811,0.01620488,63909.0,63908.0,0.13465086]
[1724583530809,0.01620488,63909.0,63908.0,0.13465085]
[1724583533219,0.01620488,63909.0,63908.0,0.1102]
[1724583533620,0.07878523,63909.0,63908.0,0.1102]
[1724583534115,0.01620488,63909.0,63908.0,0.1102]
[1724583534420,0.07878524,63909.0,63908.0,0.1102]
[1724583534811,0.07878524,63909.0,63908.0,0.13465068]
[1724583536117,0.04155777,63909.0,63908.0,0.13465068]
[1724583536818,0.04155777,63909.0,63908.0,0.18156433]
[1724583537415,0.04155777,63909.0,63908.0,0.13465068]
[1724583537722,0.04155633,63909.0,63908.0,0.13465068]
[1724583538517,0.04155616,63909.0,63908.0,0.13465068]
[1724583538712,0.01620488,63909.0,63908.0,0.13465068]
[1724583539109,0.0004,63915.0,63908.0,0.05645068]
[1724583539320,0.02535073,63914.0,63913.0,0.0468935]
[1724583539517,0.02535073,63914.0,63913.0,0.25953818]
[1724583539912,0.02535073,63914.0,63913.0,0.21264468]
[1724583540619,0.02535073,63914.0,63913.0,0.25952126]
[1724583540814,0.02635073,63914.0,63913.0,0.26052126]
[1724583541016,0.02635073,63914.0,63913.0,0.26152126]
[1724583541017,0.02635045,63914.0,63913.0,0.26152126]
[1724583541815,0.02635045,63914.0,63913.0,0.26151891]
[1724583542615,0.001,63914.0,63913.0,0.26151891]
[1724583543916,0.06352182,63914.0,63913.0,0.21464233]
[1724583544218,0.001,63914.0,63913.0,0.21464233]
[1724583545118,0.001,63914.0,63913.0,0.21464232]
[1724583546319,0.0476,63914.0,63913.0,0.17447803]
[1724583546527,0.11012182,63914.0,63913.0,0.112]
[1724583547424,0.18831482,63914.0,63913.0,0.112]
[1724583549824,0.125793,63914.0,63913.0,0.112]
[1724583556026,0.125793,63914.0,63913.0,0.15887046]
[1724583556227,0.125793,63914.0,63913.0,0.23706446]
[1724583556420,0.125793,63914.0,63913.0,0.190194]
[1724583557727,0.18832052,63914.0,63913.0,0.190194]
[1724583557926,0.125793,63914.0,63913.0,0.190194]
[1724583558826,0.1883226,63914.0,63913.0,0.190194]
[1724583559026,0.15114439,63914.0,63913.0,0.190194]
[1724583566028,0.125793,63914.0,63913.0,0.190194]
[1724583568035,0.125793,63914.0,63913.0,0.25267203]
[1724583572435,0.0476,63914.0,63913.0,0.25267203]
[1724583572635,0.0476,63914.0,63913.0,0.190194]
[1724583573948,0.05655519,63914.0,63913.0,0.190194]
[1724583576138,0.05655521,63914.0,63913.0,0.190194]
[1724583580546,0.05655521,63914.0,63913.0,0.112]
[1724583580547,0.02635161,63914.0,63913.0,0.112]
[1724583580946,0.001,63914.0,63913.0,0.112]
[1724583583437,0.001,63914.0,63913.0,0.190194]
[1724583587150,0.06356556,63914.0,63913.0,0.190194]
[1724583587345,0.06356556,63914.0,63913.0,0.26838484]
[1724583588241,0.06356556,63914.0,63913.0,0.190194]
[1724583588647,0.06256556,63914.0,63913.0,0.190194]
[1724583588946,0.02535055,63914.0,63913.0,0.190194]
[1724583589157,0.11919152,63914.0,63913.0,0.190194]
[1724583590352,0.02535055,63914.0,63913.0,0.190194]
[1724583591344,0.11919152,63914.0,63913.0,0.190194]
[1724583593050,0.02535055,63914.0,63913.0,0.190194]
[1724583595154,0.02535055,63914.0,63913.0,0.23711903]
[1724583595951,0.02535055,63914.0,63913.0,0.190194]
[1724583596147,0.06254978,63914.0,63913.0,0.190194]
[1724583596560,0.01937393,63915.0,63913.0,0.190194]
[1724583596561,0.08192371,63915.0,63913.0,0.190194]
[1724583597450,0.08192371,63915.0,63914.0,0.0004]
[1724583597649,0.08192371,63915.0,63914.0,0.0904]
[1724583597851,0.01937393,63915.0,63914.0,0.0904]
[1724583598552,0.08192182,63915.0,63914.0,0.0904]
[1724583598760,0.08192182,63915.0,63914.0,0.0914]
[1724583599146,0.08192182,63915.0,63914.0,0.0924]
[1724583600156,0.01937393,63915.0,63914.0,0.170593]
[1724583601250,0.09756593,63915.0,63914.0,0.15495725]
[1724583601565,0.09756593,63915.0,63914.0,0.0924]
[1724583603164,0.45836593,63915.0,63914.0,0.0924]
[1724583603855,0.45836593,63915.0,63914.0,0.170593]
[1724583607669,0.09756593,63915.0,63914.0,0.170593]
[1724583607860,0.45836593,63915.0,63914.0,0.170593]
[1724583609858,0.38017393,63915.0,63914.0,0.170593]
[1724583610061,0.44272439,63915.0,63914.0,0.170593]
[1724583610263,0.38017393,63915.0,63914.0,0.170593]
[1724583611167,0.40552425,63915.0,63914.0,0.170593]
[1724583612168,0.40552425,63915.0,63914.0,0.169593]
[1724583612359,0.40552425,63915.0,63914.0,0.170593]
[1724583614170,0.49934561,63915.0,63914.0,0.170593]
[1724583614465,0.40552425,63915.0,63914.0,0.170593]
[1724583614675,0.49934561,63915.0,63914.0,0.170593]
[1724583614970,0.40552425,63915.0,63914.0,0.170593]
[1724583615462,0.40552425,63915.0,63914.0,0.169593]
[1724583615767,0.40552514,63915.0,63914.0,0.170593]
[1724583615971,0.40552514,63915.0,63914.0,0.0924]
[1724583618170,0.40552514,63915.0,63914.0,0.0024]
[1724583618765,0.43572956,63915.0,63914.0,0.0024]
[1724583619172,0.38017393,63915.0,63914.0,0.04931053]
[1724583619366,0.45834101,63915.0,63914.0,0.0024]
[1724583619765,0.09754101,63915.0,63914.0,0.0024]
[1724583619966,0.45834101,63915.0,63914.0,0.0024]
[1724583621366,0.45834101,63915.0,63914.0,0.04931053]
[1724583621576,0.45834101,63915.0,63914.0,0.0024]
[1724583621767,0.38017393,63915.0,63914.0,0.04931053]
[1724583622162,0.38017393,63915.0,63914.0,0.04930335]
[1724583622771,0.38017393,63915.0,63914.0,0.0024]
[1724583622971,0.38017393,63915.0,63914.0,0.04930288]
[1724583623166,0.38017393,63915.0,63914.0,0.0124]
[1724583625178,0.44270074,63915.0,63914.0,0.07494737]
[1724583625975,0.08190074,63915.0,63914.0,0.07494737]
[1724583626280,0.07492686,63915.0,63914.0,0.0124]
[1724583632782,0.0447245,63915.0,63914.0,0.0124]
[1724583633281,0.09751396,63915.0,63914.0,0.0124]
[1724583633581,0.07854003,63915.0,63914.0,0.0124]
[1724583634180,0.00023482,63918.0,63914.0,0.22437068]
[1724583634481,0.00023482,63918.0,63917.0,0.43891417]
[1724583634680,0.00023482,63918.0,63917.0,0.66805038]
[1724583634884,0.00023482,63918.0,63917.0,0.58993621]
[1724583635185,0.00023482,63918.0,63917.0,0.58993579]
[1724583635485,0.00023482,63918.0,63917.0,0.66804013]
[1724583636480,0.00023482,63918.0,63917.0,0.54890434]
[1724583637078,0.00023482,63918.0,63917.0,1.05929557]
[1724583637482,0.00023482,63918.0,63917.0,1.15313004]
[1724583637984,0.3608,63926.0,63917.0,1.45929557]
[1724583638174,0.3608,63926.0,63921.0,0.07805477]
[1724583638380,0.3608,63926.0,63921.0,0.18805477]
[1724583638678,0.3608,63926.0,63922.0,0.07805477]
[1724583638886,0.3608,63926.0,63922.0,0.17805477]
[1724583639383,0.3608,63926.0,63925.0,0.06240053]
[1724583639577,0.3608,63926.0,63925.0,0.17240053]
[1724583640385,0.3608,63926.0,63925.0,0.11]
[1724583640580,0.02342367,63927.0,63925.0,0.11]
[1724583640777,0.00023482,63930.0,63925.0,0.111]
[1724583640974,0.00023482,63930.0,63929.0,0.3608]
[1724583641273,0.00023482,63930.0,63929.0,0.4708]
[1724583641479,0.00023482,63930.0,63929.0,0.51756197]
[1724583642182,0.00023482,63930.0,63929.0,0.4708]
[1724583642388,0.00023482,63930.0,63929.0,0.51794962]
[1724583642889,0.02388122,63930.0,63929.0,0.51894962]
[1724583643082,0.00023482,63930.0,63929.0,0.51894962]
[1724583643278,0.00023482,63930.0,63929.0,0.4722]
[1724583643885,0.00023482,63930.0,63929.0,0.4732]
[1724583644084,0.00023482,63930.0,63929.0,0.51994962]
[1724583644288,0.00023482,63930.0,63929.0,0.4732]
[1724583646888,0.00023482,63930.0,63929.0,0.94248]
[1724583647186,0.00023482,63930.0,63929.0,0.98922962]
[1724583647491,0.00023482,63930.0,63929.0,0.51994962]
[1724583649280,0.00023482,63930.0,63929.0,0.4732]
[1724583649281,0.10969308,63930.0,63929.0,0.4732]
[1724583649476,0.16522667,63930.0,63929.0,0.4732]
[1724583649678,0.05576841,63930.0,63929.0,0.4732]
[1724583652082,0.0008,63935.0,63929.0,1.34248]
[1724583652388,0.046,63945.0,63929.0,0.834]
[1724583652389,0.05553352,63934.0,63929.0,0.834]
[1724583652596,0.10945826,63942.0,63929.0,0.834]
[1724583652597,0.09341699,63930.0,63929.0,0.834]
[1724583653091,0.10945826,63934.0,63929.0,1.70328]
[1724583653391,0.05553139,63933.0,63929.0,0.834]
[1724583653598,0.10945826,63934.0,63929.0,0.834]
[1724583653599,0.05553139,63932.0,63929.0,0.834]
[1724583653889,0.05553139,63931.0,63929.0,0.833]
[1724583654085,0.05553139,63930.0,63929.0,0.834]
[1724583654285,0.03018968,63930.0,63929.0,0.834]
[1724583654594,0.05553139,63930.0,63929.0,1.70228]
[1724583654790,0.03018968,63930.0,63929.0,1.70228]
[1724583655584,0.03018968,63930.0,63929.0,1.70128]
[1724583656191,0.00015588,63936.0,63929.0,1.76365328]
[1724583656386,0.02338674,63936.0,63935.0,0.3608]
[1724583656699,0.00015588,63936.0,63935.0,0.4608]
[1724583656992,0.00015588,63936.0,63935.0,1.33044]
[1724583657589,0.00015588,63936.0,63935.0,1.33144]
[1724583658086,0.00015588,63936.0,63935.0,1.33044]
[1724583659391,0.00015588,63936.0,63935.0,1.39281328]
[1724583660190,0.00015588,63936.0,63935.0,0.4612]
[1724583661189,0.00015588,63936.0,63935.0,0.52357328]
[1724583661388,0.00015588,63936.0,63935.0,0.52450531]
[1724583662397,0.00015588,63936.0,63935.0,0.4622]
[1724583662793,0.00015588,63936.0,63935.0,0.4632]
[1724583662994,0.00015588,63936.0,63935.0,0.4622]
[1724583663193,0.00015588,63936.0,63935.0,0.4632]
[1724583664294,0.10961414,63936.0,63935.0,0.4632]
[1724583664497,0.1349536,63936.0,63935.0,0.4632]
[1724583664795,0.16514272,63936.0,63935.0,0.4632]
[1724583665398,0.09395635,63936.0,63935.0,0.4632]